fUSD/lending_fUSD_20241119
["ID","MTS","AMOUNT","RATE_DAILY","PERIOD"]
[342621851,1731999049158,-500.0,9.999e-05,2]
[342621852,1731999049167,-500.0,9.999e-05,2]
[342621853,1731999049177,-500.0,9.999e-05,2]
[342621854,1731999049187,-500.0,9.999e-05,2]
[342621855,1731999049196,-500.0,9.999e-05,2]
[342621856,1731999049461,-500.0,9.999e-05,2]
[342621857,1731999049473,-500.0,9.999e-05,2]
[342621858,1731999049482,-500.0,9.999e-05,2]
[342621859,1731999049492,-500.0,9.999e-05,2]
[342621860,1731999049502,-391.7,9.999e-05,2]
[342621861,1731999049512,-500.0,9.999e-05,2]
[342621862,1731999049521,-500.0,9.999e-05,2]
[342621863,1731999049532,-500.0,9.999e-05,2]
[342621864,1731999049541,-500.0,9.999e-05,2]
[342621865,1731999049551,-500.0,9.999e-05,2]
[342621866,1731999049561,-500.0,9.999e-05,2]
[342621867,1731999049570,-500.0,9.999e-05,2]
[342621868,1731999049580,-500.0,9.999e-05,2]
[342621869,1731999049590,-500.0,9.999e-05,2]
[342621870,1731999049600,-500.0,9.999e-05,2]
[342621871,1731999049611,-500.0,9.999e-05,2]
[342621872,1731999049621,-500.0,9.999e-05,2]
[342621873,1731999049631,-500.0,9.999e-05,2]
[342621874,1731999049641,-500.0,9.999e-05,2]
[342621875,1731999049651,-500.0,9.999e-05,2]
[342621876,1731999049661,-500.0,9.999e-05,2]
[342621877,1731999049671,-500.0,9.999e-05,2]
[342621878,1731999049680,-500.0,9.999e-05,2]
[342621879,1731999049690,-500.0,9.999e-05,2]
[342621880,1731999049700,-500.0,9.999e-05,2]
[342621881,1731999049710,-500.0,9.999e-05,2]
[342621882,1731999049722,-500.0,9.999e-05,2]
[342621883,1731999049731,-500.0,9.999e-05,2]
[342621884,1731999049742,-489.53,9.999e-05,2]
[342621885,1731999049751,-500.0,9.999e-05,2]
[342621886,1731999049761,-500.0,9.999e-05,2]
[342621887,1731999049771,-500.0,9.999e-05,2]
[342621888,1731999049781,-500.0,9.999e-05,2]
[342621889,1731999049791,-500.0,9.999e-05,2]
[342621890,1731999049800,-500.0,9.999e-05,2]
[342621891,1731999049810,-500.0,9.999e-05,2]
[342621892,1731999049820,-500.0,9.999e-05,2]
[342621893,1731999049829,-653.0,9.999e-05,2]
[342621894,1731999049839,-8777.55552837,0.0001,2]
[342621895,1731999049849,-195870.9279441,0.0001,2]
[342621896,1731999049858,-150.27151236,0.0001,2]
[342621897,1731999049867,-150.27151234,0.0001,2]
[342621898,1731999049877,-150.27151234,0.0001,2]
[342621899,1731999049886,-150.27151234,0.0001,2]
[342621900,1731999049896,-382623.18954034,0.0001,2]
[342621901,1731999049905,-730.77,0.0001,2]
[342621902,1731999049914,-10005.95,0.0001,2]
[342621903,1731999049923,-12670275.54668693,0.0001,2]
[342621904,1731999050203,-626.508,0.0001,2]
[342621905,1731999050242,-500.0,9.999e-05,2]
[342621906,1731999050251,-2328.7122901,0.0001,2]
[342621907,1731999050263,-2016.09191384,0.0001,2]
[342621908,1731999050276,-460.85462218,0.0001,2]
[342621909,1731999050695,-500.0,9.863e-05,2]
[342621910,1731999050705,-500.0,9.996e-05,2]
[342621911,1731999050715,-590.21,9.998e-05,2]
[342621912,1731999050725,-193.57,9.999e-05,2]
[342621913,1731999050735,-3047.65672794,0.0001,2]
[342621914,1731999050746,-550.50093868,0.0001,2]
[342621915,1731999050757,-145134.34221137,0.0001,2]
[342621916,1731999050769,-4595.55,0.0001,2]
[342621917,1731999050784,-649.84901329,0.0001,2]
[342621918,1731999050796,-544.34473846,0.0001,2]
[342621919,1731999050808,-376.58993158,0.0001,2]
[342621920,1731999050819,-614.47312218,0.0001,2]
[342621921,1731999050834,-852.22895866,0.0001,2]
[342621922,1731999050846,-414960.53675855,0.0001,2]
[342621923,1731999050860,-4465.35320515,0.0001,2]
[342621924,1731999050872,-807.664508,0.0001,2]
[342621925,1731999050882,-1333.7894935,0.0001,2]
[342621926,1731999050898,-21945.75,0.0001,2]
[342621927,1731999050909,-2711.19974855,0.0001,2]
[342621928,1731999050920,-2537.03952318,0.0001,2]
[342621929,1731999050931,-1593.75750387,0.0001,2]
[342621930,1731999050943,-662.70634916,0.0001,2]
[342621931,1731999050954,-2835.104616,0.0001,2]
[342621932,1731999050980,-213.14,9.863e-05,2]
[342621933,1731999050990,-3708.48591642,0.0001,2]
[342621934,1731999051226,-150.27151234,0.0001,2]
[342621935,1731999051237,-91733.72848766,0.0001,2]
[342621936,1731999051248,-13132.29183902,0.0001,2]
[342621937,1731999051268,-225136.67148818,0.0001,2]
[342621938,1731999051280,-1627.71039664,0.0001,2]
[342621939,1731999051291,-10785.09600403,0.0001,2]
[342621940,1731999051302,-6786.08337644,0.0001,2]
[342621941,1731999051313,-1536.185,0.0001,2]
[342621942,1731999051411,-543.0,9.699e-05,2]
[342621943,1731999051424,-1034.3116,9.699e-05,2]
[342621944,1731999051434,-4465.6887,0.0001,2]
[342621945,1731999051445,-522.3029,0.0001,2]
[342621946,1731999051464,-2160.05082261,0.0001,2]
[342621947,1731999051476,-20687.852234,0.0001,2]
[342621948,1731999051493,-4603.0642029,0.0001,2]
[342621949,1731999051575,-3213.95000088,0.0001,2]
[342621954,1731999247322,175.5,8.219e-05,2]
[342621956,1731999572524,536.82,8.487e-05,2]
[342621957,1731999591955,150.0,8.487e-05,2]
[342621958,1731999591977,50.0,8.487e-05,2]
[342621961,1731999618328,150.0,8.487e-05,2]
[342621962,1731999618354,100.0,8.487e-05,2]
[342621963,1731999663774,150.0,8.485e-05,2]
[342621964,1731999663803,150.0,8.485e-05,2]
[342621965,1731999663831,150.0,8.485e-05,2]
[342621966,1731999663859,150.0,8.485e-05,2]
[342621967,1731999663888,150.0,8.485e-05,2]
[342621968,1731999663916,40.22,8.485e-05,2]
[342621969,1731999718143,290.1,6.792e-05,2]
[342621970,1731999739425,150.0,8.49e-05,2]
[342621971,1731999739447,100.0,8.49e-05,2]
[342621972,1731999771575,150.0,8.487e-05,2]
[342621973,1731999771597,100.0,8.487e-05,2]
[342621974,1731999801586,150.0,8.495e-05,2]
[342621975,1731999801611,150.0,8.495e-05,2]
[342621976,1731999801910,150.0,8.495e-05,2]
[342621977,1731999801933,150.0,8.495e-05,2]
[342621978,1731999801960,150.0,8.495e-05,2]
[342621979,1731999801983,150.0,8.495e-05,2]
[342621980,1731999802005,150.0,8.495e-05,2]
[342621981,1731999802028,150.0,8.495e-05,2]
[342621982,1731999802053,150.0,8.495e-05,2]
[342621983,1731999802076,150.0,8.495e-05,2]
[342621984,1731999802099,150.0,8.495e-05,2]
[342621985,1731999802121,150.0,8.495e-05,2]
[342621986,1731999802145,150.0,8.495e-05,2]
[342621987,1731999802168,150.0,8.495e-05,2]
[342621988,1731999802192,150.0,8.495e-05,2]
[342621989,1731999802216,150.0,8.495e-05,2]
[342621990,1731999802238,150.0,8.495e-05,2]
[342621991,1731999802260,150.0,8.495e-05,2]
[342621992,1731999802282,150.0,8.495e-05,2]
[342621993,1731999802306,150.0,8.495e-05,2]
[342621994,1731999802334,150.0,8.495e-05,2]
[342621995,1731999802357,150.0,8.495e-05,2]
[342621996,1731999802382,11017.81,8.495e-05,2]
[342621997,1731999893767,313.32,8.502e-05,2]
[342621998,1731999902986,1000.0,8.501e-05,2]
[342621999,1732000016138,-165.29,8.519e-05,2]
[342622000,1732000016160,-75.47274429,8.54e-05,2]
[342622024,1732000232347,-1181.32532351,8.515e-05,2]
[342622025,1732000232359,-248.48467649,8.515e-05,2]
[342622026,1732000232369,-500.0,9e-05,2]
[342622027,1732000232378,-27.39090138,9e-05,2]
[342622028,1732000232557,-472.60909862,9e-05,2]
[342622029,1732000232567,-499.69,9e-05,2]
[342622030,1732000232578,-1097.34318534,9e-05,2]
[342622031,1732000232622,-329.14260328,9e-05,2]
[342622032,1732000232634,-373.99841959,9e-05,2]
[342622033,1732000232688,-5360.92464768,9e-05,2]
[342622034,1732000232699,-1775.79,9.078e-05,2]
[342622035,1732000232708,-1775.79,9.081e-05,2]
[342622036,1732000232719,-300.0,9.082e-05,2]
[342622037,1732000232730,-1775.79,9.083e-05,2]
[342622038,1732000232740,-1775.79,9.085e-05,2]
[342622039,1732000232750,-1775.79,9.088e-05,2]
[342622040,1732000232759,-1775.79,9.09e-05,2]
[342622041,1732000232770,-1775.79,9.093e-05,2]
[342622042,1732000232778,-1775.79,9.095e-05,2]
[342622043,1732000232788,-1775.79,9.097e-05,2]
[342622044,1732000232797,-164.47,9.098e-05,2]
[342622046,1732000232806,-1775.79,9.1e-05,2]
[342622047,1732000232815,-1775.79,9.102e-05,2]
[342622049,1732000232825,-1775.79,9.105e-05,2]
[342622051,1732000232834,-1775.79,9.107e-05,2]
[342622053,1732000232843,-1775.79,9.109e-05,2]
[342622055,1732000232852,-1775.79,9.112e-05,2]
[342622057,1732000232862,-1775.79,9.114e-05,2]
[342622059,1732000232871,-1775.79,9.116e-05,2]
[342622061,1732000232880,-1775.79,9.119e-05,2]
[342622063,1732000232891,-1775.79,9.121e-05,2]
[342622065,1732000232900,-150.0,9.123e-05,2]
[342622067,1732000232910,-1775.79,9.124e-05,2]
[342622069,1732000232920,-150.0,9.385e-05,2]
[342622071,1732000232929,-166.69,9.431e-05,2]
[342622073,1732000232939,-790.22,9.546e-05,2]
[342622075,1732000232948,-1000.0,9.564e-05,2]
[342622077,1732000232958,-200.0,9.6e-05,2]
[342622079,1732000232967,-433.34,9.842e-05,2]
[342622081,1732000232976,-386.583,9.849e-05,2]
[342622082,1732000232986,-1926.0,9.849e-05,2]
[342622084,1732000232996,-560.0,9.849e-05,2]
[342622085,1732000233005,-974.991,9.849e-05,2]
[342622086,1732000233015,-1109.36046347,9.849e-05,2]
[342622087,1732000233027,-149.63953653,9.849e-05,2]
[342622088,1732000233036,-308.1,9.863e-05,2]
[342622089,1732000233046,-132.42115523,9.863e-05,2]
[342622090,1732000233068,-367.57884477,9.863e-05,2]
[342622091,1732000233078,-500.0,9.863e-05,2]
[342622092,1732000233087,-500.0,9.863e-05,2]
[342622093,1732000233098,-500.0,9.863e-05,2]
[342622094,1732000233109,-500.0,9.863e-05,2]
[342622095,1732000233118,-500.0,9.863e-05,2]
[342622096,1732000233128,-500.0,9.863e-05,2]
[342622097,1732000233138,-500.0,9.863e-05,2]
[342622098,1732000233148,-500.0,9.863e-05,2]
[342622099,1732000233157,-500.0,9.863e-05,2]
[342622100,1732000233167,-8933.62115525,9.9e-05,2]
[342622101,1732000233179,-290.832,9.9e-05,2]
[342622104,1732000238185,-2305.47984475,9.9e-05,2]
[342622106,1732000238196,-500.0,9.973e-05,2]
[342622107,1732000238206,-227.67070816,9.973e-05,2]
[342622108,1732000238215,-500.0,9.978e-05,2]
[342622109,1732000238224,-500.0,9.978e-05,2]
[342622110,1732000238234,-500.0,9.978e-05,2]
[342622111,1732000238243,-500.0,9.978e-05,2]
[342622112,1732000238252,-392.85856564,9.978e-05,2]
[342622113,1732000238263,-107.14143436,9.978e-05,2]
[342622114,1732000238273,-422.0,9.978e-05,2]
[342622115,1732000238282,-500.0,9.978e-05,2]
[342622116,1732000238291,-265.2162351,9.988e-05,2]
[342622117,1732000238301,-278.603679,9.989e-05,2]
[342622118,1732000238310,-301.3263406,9.989e-05,2]
[342622119,1732000238321,-420.0,9.99e-05,2]
[342622120,1732000238331,-253.5799672,9.993e-05,2]
[342622121,1732000238343,-241.9436993,9.993e-05,2]
[342622122,1732000238352,-230.3074315,9.993e-05,2]
[342622123,1732000238361,-288.1057547,9.993e-05,2]
[342622124,1732000238370,-274.8851688,9.993e-05,2]
[342622125,1732000238379,-261.6645829,9.993e-05,2]
[342622126,1732000238389,-153.0,9.995e-05,2]
[342622127,1732000238399,-1080.247,9.996e-05,2]
[342622128,1732000238409,-500.0,9.998e-05,2]
[342622129,1732000238418,-500.0,9.998e-05,2]
[342622130,1732000238428,-136.90407474,9.998e-05,2]
[342622131,1732000238440,-292.8066626,9.998e-05,2]
[342622132,1732000238452,-70.28926266,9.998e-05,2]
[342622133,1732000238464,-288.04558898,9.998e-05,2]
[342622134,1732000238476,-211.95441102,9.998e-05,2]
[342622135,1732000238486,-328.69916053,9.998e-05,2]
[342622136,1732000238498,-171.30083947,9.998e-05,2]
[342622137,1732000238508,-387.66,9.998e-05,2]
[342622138,1732000238518,-247.19905353,9.998e-05,2]
[342622139,1732000238531,-252.80094647,9.998e-05,2]
[342622140,1732000238543,-500.0,9.998e-05,2]
[342622141,1732000238553,-500.0,9.998e-05,2]
[342622142,1732000238563,-500.0,9.998e-05,2]
[342622143,1732000238572,-500.0,9.998e-05,2]
[342622144,1732000238584,-500.0,9.998e-05,2]
[342622145,1732000238594,-500.0,9.998e-05,2]
[342622146,1732000238604,-500.0,9.998e-05,2]
[342622147,1732000238614,-500.0,9.998e-05,2]
[342622148,1732000238624,-140.11210762,9.998e-05,2]
[342622149,1732000238636,-359.88789238,9.998e-05,2]
[342622150,1732000238646,-118.4317068,9.998e-05,2]
[342622151,1732000238658,-381.5682932,9.998e-05,2]
[342622152,1732000238668,-500.0,9.998e-05,2]
[342622153,1732000238677,-500.0,9.998e-05,2]
[342622154,1732000238688,-500.0,9.998e-05,2]
[342622155,1732000238698,-500.0,9.998e-05,2]
[342622156,1732000238708,-342.99523112,9.998e-05,2]
[342622158,1732000239037,-264.24,9.998e-05,2]
[342622159,1732000239056,-145.90476888,9.998e-05,2]
[342622160,1732000239065,-1103.18,9.998e-05,2]
[342622161,1732000239075,-4166.66,9.998e-05,2]
[342622162,1732000239086,-500.0,9.998e-05,2]
[342622163,1732000239096,-500.0,9.998e-05,2]
[342622164,1732000239105,-500.0,9.998e-05,2]
[342622165,1732000239115,-500.0,9.998e-05,2]
[342622166,1732000239124,-500.0,9.998e-05,2]
[342622167,1732000239134,-500.0,9.998e-05,2]
[342622168,1732000239144,-500.0,9.998e-05,2]
[342622169,1732000239154,-754.42182866,9.999e-05,2]
[342622170,1732000239164,-4176.53886428,9.999e-05,2]
[342622171,1732000239174,-500.0,9.999e-05,2]
[342622172,1732000239185,-500.0,9.999e-05,2]
[342622173,1732000239195,-500.0,9.999e-05,2]
[342622174,1732000239204,-500.0,9.999e-05,2]
[342622175,1732000239213,-500.0,9.999e-05,2]
[342622176,1732000239223,-500.0,9.999e-05,2]
[342622177,1732000239232,-306.26,9.999e-05,2]
[342622178,1732000239241,-500.0,9.999e-05,2]
[342622179,1732000239250,-500.0,9.999e-05,2]
[342622180,1732000239260,-500.0,9.999e-05,2]
[342622181,1732000239269,-500.0,9.999e-05,2]
[342622182,1732000239279,-500.0,9.999e-05,2]
[342622183,1732000239288,-304.98,9.999e-05,2]
[342622184,1732000239298,-819.84,9.999e-05,2]
[342622185,1732000239307,-819.84,9.999e-05,2]
[342622186,1732000239316,-819.84,9.999e-05,2]
[342622187,1732000239326,-819.84,9.999e-05,2]
[342622188,1732000239344,-819.84,9.999e-05,2]
[342622189,1732000239356,-819.84,9.999e-05,2]
[342622190,1732000239366,-819.84,9.999e-05,2]
[342622191,1732000239375,-819.84,9.999e-05,2]
[342622192,1732000239386,-819.84,9.999e-05,2]
[342622193,1732000239397,-819.84,9.999e-05,2]
[342622194,1732000239407,-819.84,9.999e-05,2]
[342622195,1732000239416,-819.84,9.999e-05,2]
[342622196,1732000239427,-819.84,9.999e-05,2]
[342622197,1732000239437,-819.84,9.999e-05,2]
[342622198,1732000239447,-819.84,9.999e-05,2]
[342622199,1732000239458,-819.84,9.999e-05,2]
[342622200,1732000239470,-819.84,9.999e-05,2]
[342622201,1732000239480,-819.84,9.999e-05,2]
[342622202,1732000239489,-819.84,9.999e-05,2]
[342622203,1732000239499,-819.84,9.999e-05,2]
[342622204,1732000239511,-819.84,9.999e-05,2]
[342622205,1732000239520,-819.84,9.999e-05,2]
[342622206,1732000239531,-819.84,9.999e-05,2]
[342622207,1732000239540,-820.0,9.999e-05,2]
[342622208,1732000239550,-500.0,9.999e-05,2]
[342622209,1732000239560,-500.0,9.999e-05,2]
[342622210,1732000239569,-500.0,9.999e-05,2]
[342622211,1732000239579,-500.0,9.999e-05,2]
[342622212,1732000239591,-500.0,9.999e-05,2]
[342622213,1732000239601,-500.0,9.999e-05,2]
[342622214,1732000239610,-500.0,9.999e-05,2]
[342622215,1732000239620,-500.0,9.999e-05,2]
[342622216,1732000239631,-500.0,9.999e-05,2]
[342622217,1732000239641,-517.28,9.999e-05,2]
[342622218,1732000239650,-500.0,9.999e-05,2]
[342622219,1732000239660,-500.0,9.999e-05,2]
[342622220,1732000239670,-500.0,9.999e-05,2]
[342622221,1732000239679,-500.0,9.999e-05,2]
[342622222,1732000239689,-500.0,9.999e-05,2]
[342622223,1732000239699,-500.0,9.999e-05,2]
[342622224,1732000239709,-500.0,9.999e-05,2]
[342622225,1732000239719,-500.0,9.999e-05,2]
[342622226,1732000239731,-500.0,9.999e-05,2]
[342622227,1732000239741,-500.0,9.999e-05,2]
[342622228,1732000239751,-500.0,9.999e-05,2]
[342622229,1732000239761,-500.0,9.999e-05,2]
[342622230,1732000239771,-500.0,9.999e-05,2]
[342622231,1732000239780,-500.0,9.999e-05,2]
[342622232,1732000239790,-500.0,9.999e-05,2]
[342622233,1732000239800,-500.0,9.999e-05,2]
[342622234,1732000239810,-500.0,9.999e-05,2]
[342622235,1732000239819,-341.04,9.999e-05,2]
[342622236,1732000239829,-151.83,9.999e-05,2]
[342622237,1732000239840,-500.0,9.999e-05,2]
[342622238,1732000239850,-500.0,9.999e-05,2]
[342622239,1732000239865,-500.0,9.999e-05,2]
[342622240,1732000239875,-500.0,9.999e-05,2]
[342622241,1732000239884,-182.36,9.999e-05,2]
[342622242,1732000239894,-500.0,9.999e-05,2]
[342622243,1732000239904,-215.41,9.999e-05,2]
[342622244,1732000239914,-500.0,9.999e-05,2]
[342622245,1732000239923,-500.0,9.999e-05,2]
[342622246,1732000239934,-500.0,9.999e-05,2]
[342622247,1732000239944,-500.0,9.999e-05,2]
[342622248,1732000239954,-500.0,9.999e-05,2]
[342622249,1732000239964,-500.0,9.999e-05,2]
[342622250,1732000239974,-500.0,9.999e-05,2]
[342622251,1732000239983,-500.0,9.999e-05,2]
[342622252,1732000239993,-648.26,9.999e-05,2]
[342622253,1732000240003,-500.0,9.999e-05,2]
[342622254,1732000240012,-500.0,9.999e-05,2]
[342622255,1732000240022,-353.04,9.999e-05,2]
[342622256,1732000240031,-500.0,9.999e-05,2]
[342622257,1732000240040,-500.0,9.999e-05,2]
[342622258,1732000240050,-500.0,9.999e-05,2]
[342622259,1732000240059,-500.0,9.999e-05,2]
[342622260,1732000240068,-637.85,9.999e-05,2]
[342622262,1732000240078,-615.32,9.999e-05,2]
[342622263,1732000240088,-500.0,9.999e-05,2]
[342622264,1732000240098,-500.0,9.999e-05,2]
[342622265,1732000240107,-447.17,9.999e-05,2]
[342622266,1732000240117,-150.0,9.999e-05,2]
[342622267,1732000240126,-150.0,9.999e-05,2]
[342622268,1732000240137,-150.0,9.999e-05,2]
[342622269,1732000240146,-150.0,9.999e-05,2]
[342622270,1732000240156,-500.0,9.999e-05,2]
[342622271,1732000240167,-500.0,9.999e-05,2]
[342622272,1732000240176,-500.0,9.999e-05,2]
[342622273,1732000240187,-500.0,9.999e-05,2]
[342622274,1732000240196,-500.0,9.999e-05,2]
[342622275,1732000240205,-453.02,9.999e-05,2]
[342622276,1732000240215,-500.0,9.999e-05,2]
[342622277,1732000240224,-500.0,9.999e-05,2]
[342622278,1732000240234,-500.0,9.999e-05,2]
[342622279,1732000240244,-500.0,9.999e-05,2]
[342622280,1732000240253,-500.0,9.999e-05,2]
[342622281,1732000240262,-500.0,9.999e-05,2]
[342622282,1732000240272,-500.0,9.999e-05,2]
[342622283,1732000240282,-460.56,9.999e-05,2]
[342622284,1732000240291,-500.0,9.999e-05,2]
[342622285,1732000240301,-638.72,9.999e-05,2]
[342622286,1732000240310,-500.0,9.999e-05,2]
[342622287,1732000240319,-500.0,9.999e-05,2]
[342622288,1732000240329,-167.2,9.999e-05,2]
[342622289,1732000240340,-500.0,9.999e-05,2]
[342622290,1732000240349,-500.0,9.999e-05,2]
[342622291,1732000240359,-500.0,9.999e-05,2]
[342622292,1732000240368,-500.0,9.999e-05,2]
[342622293,1732000240377,-500.0,9.999e-05,2]
[342622294,1732000240387,-500.0,9.999e-05,2]
[342622295,1732000240396,-500.0,9.999e-05,2]
[342622296,1732000240406,-170.9,9.999e-05,2]
[342622297,1732000240416,-186.15738605,9.999e-05,2]
[342622298,1732000240426,-500.0,9.999e-05,2]
[342622299,1732000240437,-500.0,9.999e-05,2]
[342622300,1732000240447,-500.0,9.999e-05,2]
[342622301,1732000240457,-500.0,9.999e-05,2]
[342622302,1732000240470,-1000.0,9.999e-05,2]
[342622303,1732000240480,-972.89,9.999e-05,2]
[342622304,1732000240489,-500.0,9.999e-05,2]
[342622305,1732000240499,-500.0,9.999e-05,2]
[342622306,1732000240509,-500.0,9.999e-05,2]
[342622307,1732000240519,-500.0,9.999e-05,2]
[342622308,1732000240528,-500.0,9.999e-05,2]
[342622309,1732000240540,-500.0,9.999e-05,2]
[342622310,1732000240549,-500.0,9.999e-05,2]
[342622311,1732000240561,-500.0,9.999e-05,2]
[342622312,1732000240570,-179.82,9.999e-05,2]
[342622313,1732000240580,-500.0,9.999e-05,2]
[342622314,1732000240592,-500.0,9.999e-05,2]
[342622315,1732000240601,-500.0,9.999e-05,2]
[342622316,1732000240610,-500.0,9.999e-05,2]
[342622317,1732000240619,-500.0,9.999e-05,2]
[342622318,1732000240629,-500.0,9.999e-05,2]
[342622319,1732000240638,-500.0,9.999e-05,2]
[342622320,1732000240647,-500.0,9.999e-05,2]
[342622321,1732000240656,-463.7,9.999e-05,2]
[342622322,1732000240666,-500.0,9.999e-05,2]
[342622323,1732000240675,-500.0,9.999e-05,2]
[342622324,1732000240684,-500.0,9.999e-05,2]
[342622325,1732000240693,-500.0,9.999e-05,2]
[342622326,1732000240702,-500.0,9.999e-05,2]
[342622327,1732000240712,-500.0,9.999e-05,2]
[342622328,1732000240721,-500.0,9.999e-05,2]
[342622329,1732000240732,-500.0,9.999e-05,2]
[342622330,1732000240741,-500.0,9.999e-05,2]
[342622331,1732000240751,-500.0,9.999e-05,2]
[342622332,1732000240760,-500.0,9.999e-05,2]
[342622333,1732000240770,-500.0,9.999e-05,2]
[342622334,1732000240779,-500.0,9.999e-05,2]
[342622335,1732000240789,-500.0,9.999e-05,2]
[342622336,1732000240798,-327.02459655,9.999e-05,2]
[342622337,1732000240808,-500.0,9.999e-05,2]
[342622338,1732000240818,-500.0,9.999e-05,2]
[342622339,1732000240829,-573.00062491,9.999e-05,2]
[342622340,1732000240840,-500.0,9.999e-05,2]
[342622341,1732000240849,-200.71,9.999e-05,2]
[342622342,1732000240859,-2000.0,9.999e-05,2]
[342622343,1732000240868,-500.0,9.999e-05,2]
[342622344,1732000240878,-500.0,9.999e-05,2]
[342622345,1732000240887,-500.0,9.999e-05,2]
[342622346,1732000240896,-500.0,9.999e-05,2]
[342622347,1732000240906,-500.0,9.999e-05,2]
[342622348,1732000240915,-500.0,9.999e-05,2]
[342622349,1732000240924,-312.86,9.999e-05,2]
[342622350,1732000240933,-500.0,9.999e-05,2]
[342622351,1732000240943,-177.77,9.999e-05,2]
[342622352,1732000240952,-500.0,9.999e-05,2]
[342622353,1732000240961,-500.0,9.999e-05,2]
[342622354,1732000240970,-500.0,9.999e-05,2]
[342622355,1732000240980,-500.0,9.999e-05,2]
[342622356,1732000240989,-500.0,9.999e-05,2]
[342622357,1732000240999,-500.0,9.999e-05,2]
[342622358,1732000241008,-500.0,9.999e-05,2]
[342622359,1732000241017,-500.0,9.999e-05,2]
[342622360,1732000241026,-500.0,9.999e-05,2]
[342622361,1732000241035,-500.0,9.999e-05,2]
[342622362,1732000241044,-500.0,9.999e-05,2]
[342622363,1732000241053,-500.0,9.999e-05,2]
[342622364,1732000241062,-500.0,9.999e-05,2]
[342622365,1732000241072,-500.0,9.999e-05,2]
[342622366,1732000241081,-500.0,9.999e-05,2]
[342622367,1732000241092,-500.0,9.999e-05,2]
[342622368,1732000241101,-500.0,9.999e-05,2]
[342622369,1732000241110,-500.0,9.999e-05,2]
[342622370,1732000241121,-500.0,9.999e-05,2]
[342622371,1732000241130,-500.0,9.999e-05,2]
[342622372,1732000241139,-500.0,9.999e-05,2]
[342622373,1732000241149,-500.0,9.999e-05,2]
[342622374,1732000241158,-500.0,9.999e-05,2]
[342622375,1732000241168,-500.0,9.999e-05,2]
[342622376,1732000241176,-500.0,9.999e-05,2]
[342622377,1732000241187,-500.0,9.999e-05,2]
[342622378,1732000241197,-500.0,9.999e-05,2]
[342622379,1732000241206,-500.0,9.999e-05,2]
[342622380,1732000241215,-500.0,9.999e-05,2]
[342622381,1732000241224,-500.0,9.999e-05,2]
[342622382,1732000241233,-500.0,9.999e-05,2]
[342622383,1732000241242,-500.0,9.999e-05,2]
[342622384,1732000241251,-527.28,9.999e-05,2]
[342622385,1732000241261,-399.96,9.999e-05,2]
[342622386,1732000241270,-500.0,9.999e-05,2]
[342622387,1732000241279,-500.0,9.999e-05,2]
[342622388,1732000241288,-500.0,9.999e-05,2]
[342622389,1732000241297,-500.0,9.999e-05,2]
[342622390,1732000241307,-490.44,9.999e-05,2]
[342622391,1732000241316,-500.0,9.999e-05,2]
[342622392,1732000241326,-500.0,9.999e-05,2]
[342622393,1732000241336,-500.0,9.999e-05,2]
[342622394,1732000241345,-500.0,9.999e-05,2]
[342622395,1732000241355,-500.0,9.999e-05,2]
[342622396,1732000241364,-500.0,9.999e-05,2]
[342622397,1732000241374,-500.0,9.999e-05,2]
[342622398,1732000241384,-500.0,9.999e-05,2]
[342622399,1732000241393,-500.0,9.999e-05,2]
[342622400,1732000241402,-532.25,9.999e-05,2]
[342622401,1732000241411,-500.0,9.999e-05,2]
[342622402,1732000241421,-500.0,9.999e-05,2]
[342622403,1732000241430,-500.0,9.999e-05,2]
[342622404,1732000241441,-500.0,9.999e-05,2]